bitfinex-derivatives/quotes_ETHF0:USTF0_20251028
["timestamp","ask_amount","ask_price","bid_price","bid_amount"]
[1761692673294,0.90133,3987.0,3986.9,4.0449]
[1761692673505,0.45143,3987.0,3986.9,4.0449]
[1761692673899,0.45141,3987.2,3987.1,0.0783]
[1761692674104,3.2078,3987.7,3987.6,0.2349]
[1761692674404,0.80052,3988.0,3987.9,0.1566]
[1761692674603,1.12052,3988.0,3987.9,3.9656]
[1761692674998,3.34060918,3988.5,3987.9,3.9656]
[1761692674999,0.45131,3988.1,3987.9,4.0439]
[1761692675193,0.77131,3988.1,3988.0,0.2349]
[1761692675698,3.79186918,3988.5,3988.4,0.1566]
[1761692675904,4.24646918,3988.5,3988.4,3.81]
[1761692676205,4.56646918,3988.5,3988.4,3.8883]
[1761692676400,1.35866918,3988.5,3988.4,3.8883]
[1761692676593,1.35866918,3988.5,3988.4,3.9666]
[1761692677604,1.35866918,3988.5,3988.4,3.8883]
[1761692678805,1.35866918,3988.5,3988.4,3.81]
[1761692679803,0.45133,3987.9,3987.8,3.2861]
[1761692680003,1.23143,3987.9,3987.8,3.9676]
[1761692680603,0.45133,3988.0,3987.9,0.2349]
[1761692680905,0.78843,3988.0,3987.9,0.2349]
[1761692681106,0.91603,3988.0,3987.9,0.2349]
[1761692681304,0.4647,3988.0,3987.9,0.2349]
[1761692681508,0.78841,3988.2,3988.1,0.1566]
[1761692681697,1.01331,3988.2,3988.1,0.1566]
[1761692681903,1.23143,3987.9,3987.8,7.0971]
[1761692682103,1.23143,3987.9,3987.8,7.1754]
[1761692684710,1.23143,3987.9,3987.8,3.9676]
[1761692686518,1.23143,3987.9,3987.8,3.811]
[1761692687406,1.01333,3987.9,3987.8,3.8893]
[1761692687713,1.01333,3987.9,3987.8,4.0459]
[1761692687912,0.78843,3987.9,3987.8,4.0459]
[1761692688415,1.01333,3987.9,3987.8,3.9676]
[1761692688614,1.23143,3987.9,3987.8,3.9676]
[1761692690607,1.0134,3987.3,3987.2,0.1566]
[1761692690912,1.0134,3987.3,3987.2,3.9676]
[1761692692710,0.1276,3987.5,3987.2,3.9676]
[1761692692917,0.78844,3987.8,3987.7,0.2349]
[1761692693215,0.78844,3987.8,3987.7,4.0469]
[1761692693409,0.3371,3987.8,3987.7,4.0469]
[1761692693716,0.91602,3988.0,3987.9,0.2349]
[1761692694013,0.91602,3988.0,3987.9,3.4427]
[1761692694211,1.14092,3988.0,3987.9,3.3644]
[1761692694414,1.35902,3988.0,3987.9,3.3644]
[1761692695714,1.35902,3988.0,3987.9,3.811]
[1761692696013,1.35902,3988.0,3987.9,3.8893]
[1761692696616,1.35902,3988.0,3987.9,0.0783]
[1761692696815,1.35902,3988.0,3987.9,3.8903]
[1761692698219,1.35902,3988.0,3987.9,3.812]
[1761692700918,1.01337,3987.6,3987.5,0.1566]
[1761692701214,1.23147,3987.6,3987.5,3.9666]
[1761692701427,1.23151,3987.2,3987.1,1.80004127]
[1761692701717,1.35913,3987.0,3986.9,0.0783]
[1761692701912,1.35913,3987.0,3986.9,3.8883]
[1761692702311,1.35913,3987.0,3986.9,3.9666]
[1761692702621,1.35913,3987.0,3986.9,0.1566]
[1761692702823,1.35913,3987.0,3986.9,3.9676]
[1761692703221,1.35913,3987.0,3986.9,0.1566]
[1761692703423,1.35913,3987.0,3986.9,3.9666]
[1761692705119,1.35913,3987.0,3986.9,3.8883]
[1761692705315,1.23157,3986.7,3986.6,3.81080471]
[1761692706212,0.78857,3986.7,3986.6,4.04570471]
[1761692706822,3.2078,3987.1,3986.9,0.1566]
[1761692707025,0.4647,3987.5,3987.4,0.1566]
[1761692707325,0.6896,3987.5,3987.4,3.9676]
[1761692707527,1.14098,3987.5,3987.4,3.9676]
[1761692707718,1.35908,3987.5,3987.4,3.9676]
[1761692708826,1.14098,3987.5,3987.4,3.9676]
[1761692709018,0.45138,3987.5,3987.4,4.046]
[1761692709221,0.91758,3987.5,3987.4,4.046]
[1761692709421,0.91758,3987.5,3987.4,0.235]
[1761692709622,1.14948,3987.5,3987.4,3.9676]
[1761692710025,1.36588,3987.5,3987.4,3.9676]
[1761692710327,1.03025,3986.8,3986.7,3.3644]
[1761692710532,1.03025,3986.8,3986.7,7.1754]
[1761692710723,1.26455,3986.8,3986.7,7.1754]
[1761692710925,1.26455,3986.8,3986.7,7.0971]
[1761692711223,1.26455,3986.8,3986.7,7.0188]
[1761692711921,1.26455,3986.8,3986.7,7.0971]
[1761692712319,1.26455,3986.8,3986.7,3.2861]
[1761692712525,1.26455,3986.8,3986.7,7.0981]
[1761692713417,1.26455,3986.8,3986.7,7.1764]
[1761692714634,1.26455,3986.8,3986.7,3.9686]
[1761692717632,1.26455,3986.8,3986.7,3.812]
[1761692717942,1.26455,3986.8,3985.0,4.33058102]
[1761692717943,0.8131,3985.6,3985.5,1.80004127]
[1761692718233,0.3505,3985.6,3985.5,0.1566]
[1761692718439,0.45157,3985.8,3985.6,0.0783]
[1761692718632,0.45157,3985.8,3985.7,0.2349]
[1761692718936,0.45401971,3985.8,3985.7,0.23720866]
[1761692719229,0.80451971,3985.8,3985.7,0.23720866]
[1761692720937,1.03281971,3985.8,3985.7,0.15890866]
[1761692721436,1.26711971,3985.8,3985.7,0.15890866]
[1761692722035,1.26711971,3985.8,3985.7,3.97390866]
[1761692722241,0.80451971,3985.8,3985.7,4.05220866]
[1761692722536,0.45401971,3985.8,3985.7,4.05220866]
[1761692722735,0.00244971,3985.8,3985.7,4.05220866]
[1761692722933,0.35294971,3985.8,3985.7,0.23720866]
[1761692723135,0.58124971,3985.8,3985.7,3.97690866]
[1761692723534,0.00244971,3985.8,3985.7,4.05520866]
[1761692724438,0.35294971,3985.8,3985.7,4.05520866]
[1761692725331,0.58124971,3985.8,3985.7,0.15890866]
[1761692725636,0.58124971,3985.8,3985.7,3.97790866]
[1761692725825,0.81554971,3985.8,3985.7,3.97790866]
[1761692726539,0.81554971,3985.8,3985.7,0.15890866]
[1761692726739,0.81554971,3985.8,3985.7,3.97690866]
[1761692727234,0.81554971,3985.8,3985.7,3.89860866]
[1761692727440,0.81554971,3985.8,3985.7,3.82030866]
[1761692728539,0.81554971,3985.8,3985.7,3.89860866]
[1761692728841,0.35294971,3985.8,3985.7,4.05520866]
[1761692730438,0.80451971,3985.8,3985.7,4.05520866]
[1761692730741,0.45401971,3985.8,3985.7,4.05520866]
[1761692730940,0.80451971,3985.8,3985.7,4.05520866]
[1761692731841,0.80451971,3985.8,3984.9,1.12916]
[1761692731842,0.45173,3984.4,3984.3,2.23760102]
[1761692732037,0.8131,3983.7,3983.0,5.80010046]
[1761692732237,3.2078,3983.3,3983.1,3.866]
[1761692732450,3.2078,3983.4,3983.1,3.866]
[1761692732845,3.3476,3984.0,3983.2,8.0]
[1761692733047,3.6981,3984.0,3983.1,3.86777121]
[1761692733346,3.7866,3983.2,3983.1,0.00177121]
[1761692733544,3.7866,3983.2,3983.1,3.86877121]
[1761692734150,4.0209,3983.2,3983.1,0.00177121]
[1761692734336,4.0209,3983.2,3983.1,3.87377121]
[1761692735943,3.2078,3983.6,3983.1,3.87377121]
[1761692736452,3.2078,3984.0,3983.3,0.45185]
[1761692736742,4.14988,3984.0,3983.2,0.45185]
[1761692736943,4.14988,3984.0,3983.2,0.0752]
[1761692736944,3.6981,3984.0,3983.2,0.0752]
[1761692737142,3.6981,3984.0,3983.4,0.45184]
[1761692737749,3.6981,3984.0,3983.2,3.70702885]
[1761692737950,0.4518,3983.8,3983.3,0.45184]
[1761692739154,3.6981,3984.0,3983.2,3.25516885]
[1761692739155,4.14988,3984.0,3983.4,0.45184]
[1761692739451,3.6981,3984.0,3983.5,0.45182]
[1761692739652,3.5583,3984.0,3983.9,0.2902]
[1761692740444,3.5583,3984.0,3983.6,4.0151]
[1761692740445,0.4394,3983.8,3983.7,0.1451]
[1761692740644,0.4394,3983.8,3983.7,0.2902]
[1761692740942,3.2078,3984.0,3983.9,0.4353]
[1761692741653,3.6495,3984.0,3983.9,4.1632]
[1761692742151,4.54067,3984.0,3983.9,4.1632]
[1761692743646,4.54067,3984.0,3983.9,0.2902]
[1761692743953,4.54067,3984.0,3983.9,4.1632]
[1761692745049,3.2078,3984.0,3983.9,4.3063]
[1761692745354,0.1398,3985.0,3984.9,0.2902]
[1761692745544,3.2078,3985.2,3985.1,0.2902]
[1761692745749,0.89103,3985.3,3985.2,0.2902]
[1761692745946,0.4394,3985.3,3985.2,0.2902]
[1761692746146,0.4394,3985.3,3985.2,0.4353]
[1761692746746,0.1398,3985.5,3985.4,0.2902]
[1761692746747,0.5792,3985.5,3985.4,0.2902]
[1761692746954,0.5792,3985.5,3985.4,4.1602]
[1761692747253,1.14389445,3985.5,3985.4,4.3053]
[1761692747458,4.09878,3985.7,3985.6,0.2902]
[1761692747756,5.1118398,3985.7,3985.6,0.2902]
[1761692750059,5.4205398,3985.7,3985.6,0.2902]
[1761692750262,4.71608,3985.7,3985.6,0.2902]
[1761692752158,0.3086,3984.8,3984.7,0.2902]
[1761692752363,0.748,3984.8,3984.7,4.1572]
[1761692753351,0.748,3984.8,3984.7,0.2902]
[1761692753555,0.748,3984.8,3984.7,4.1552]
[1761692753859,1.0567,3984.8,3984.7,4.1552]
[1761692754060,1.02417,3985.0,3984.9,0.2902]
[1761692754756,1.64147,3985.0,3984.9,0.1451]
[1761692754955,1.64147,3985.0,3984.9,4.0111]
[1761692756164,1.64147,3985.0,3984.9,4.1562]
[1761692756467,1.64146,3985.0,3984.9,4.1562]
[1761692760274,0.4417,3984.5,3984.4,0.1451]
[1761692760476,1.0567,3984.3,3984.2,3.2078]
[1761692760672,0.7504,3984.0,3983.9,0.1451]
[1761692760976,1.20217,3984.0,3983.9,4.0071]
[1761692761161,1.64157,3984.0,3983.9,0.1451]
[1761692761366,1.64157,3984.0,3983.9,4.0071]
[1761692763278,1.64157,3984.0,3983.9,0.1451]
[1761692763466,1.0567,3983.2,3983.1,0.29197121]
[1761692763770,1.0567,3983.2,3983.1,4.15497121]
[1761692764172,1.0567,3983.2,3983.1,4.15597121]
[1761692764378,1.0567,3983.2,3983.1,4.01087121]
[1761692764576,1.0567,3983.2,3983.1,0.00177121]
[1761692764778,1.0567,3983.2,3983.1,0.29197121]
[1761692765982,0.4394,3983.2,3983.1,0.43707121]
[1761692766170,3.6472,3983.4,3983.3,0.2902]
[1761692766371,3.9558,3983.4,3983.3,4.1542]
[1761692766678,0.1331,3984.5,3983.5,0.1451]
[1761692766679,0.4394,3983.8,3983.5,0.1451]
[1761692766876,3.2078,3983.9,3983.8,0.4353]
[1761692767076,3.9558,3983.9,3983.8,4.1552]
[1761692767582,3.6472,3983.9,3983.8,4.1552]
[1761692768968,3.9558,3983.9,3983.8,4.1552]
[1761692770574,4.2241,3983.9,3983.8,4.1552]
[1761692771879,4.2241,3983.9,3983.8,4.607]
[1761692772072,4.2241,3983.9,3983.8,4.1552]
[1761692772783,4.2241,3983.9,3983.8,0.2902]
[1761692772977,4.2241,3983.9,3983.8,4.1522]
[1761692773278,4.2241,3983.9,3983.8,3.862]
[1761692773673,0.4183,3983.5,3983.4,0.0566]
[1761692773981,3.4651,3983.9,3983.8,0.1132]
[1761692774186,3.4651,3983.9,3983.8,3.9752]
[1761692774481,3.873,3983.9,3983.8,3.9752]
[1761692775884,3.6157,3983.9,3983.8,4.0319]
[1761692776279,0.4079,3984.2,3984.1,0.1699]
[1761692776479,0.6652,3984.2,3984.1,3.9742]
[1761692776682,0.4079,3984.2,3984.1,4.0309]
[1761692777382,3.3409,3984.5,3984.4,0.0566]
[1761692777685,3.5982,3984.5,3984.4,3.9732]
[1761692777887,3.8673,3984.5,3984.4,3.86]
[1761692778181,4.0061,3984.5,3984.4,3.9732]
[1761692778878,4.2752,3984.5,3984.4,0.1132]
[1761692779078,0.8262,3984.0,3983.9,0.1132]
[1761692779290,0.4079,3983.9,3983.5,3.2078]
[1761692779582,0.9343,3983.8,3983.7,0.1132]
[1761692779781,0.6652,3983.8,3983.7,0.1132]
[1761692780672,0.9343,3983.8,3983.7,0.1132]
[1761692781874,0.5264,3983.6,3983.5,0.50843]
[1761692782080,0.9343,3983.6,3983.5,4.36643]
[1761692782280,0.6652,3983.6,3983.5,0.52913]
[1761692782485,0.6652,3983.6,3983.5,4.38713]
[1761692782878,0.2501,3983.2,3983.1,0.02247121]
[1761692783081,4.1075,3983.2,3983.1,3.85977121]
[1761692787480,4.1075,3983.2,3983.1,3.88047121]
[1761692791092,4.1075,3983.2,3983.1,3.85977121]
[1761692791594,4.1075,3983.2,3983.1,3.85677121]
[1761692793090,0.4008,3983.2,3983.1,3.91887121]
[1761692794200,0.1516,3983.5,3983.4,0.0414]
[1761692794791,0.8025,3983.5,3983.4,0.0414]
[1761692796698,3.2078,3983.6,3983.4,0.51393]
[1761692796904,4.1075,3983.6,3983.5,3.8934]
[1761692797203,4.1075,3983.6,3983.5,3.8727]
[1761692797398,4.1075,3983.6,3983.5,3.8717]
[1761692797592,4.1075,3983.6,3983.5,3.8924]
[1761692799696,0.8573,3983.2,3983.1,0.00177121]
[1761692799997,0.6155,3983.2,3983.1,0.00177121]
[1761692800201,0.6155,3983.2,3983.1,3.85077121]
[1761692800702,0.8573,3983.2,3983.1,3.85077121]
[1761692801103,1.30916,3983.2,3983.1,3.85077121]
[1761692802502,1.30916,3983.2,3983.1,0.00177121]
[1761692802695,1.30916,3983.2,3983.1,3.84977121]
[1761692806111,1.30916,3983.2,3983.1,3.84877121]
[1761692807608,0.8573,3983.2,3983.1,3.84877121]
[1761692807807,0.8573,3983.2,3983.1,4.30064121]
[1761692807995,0.3744,3983.2,3983.1,4.30064121]
[1761692808199,0.3744,3983.4,3983.2,0.45186]
[1761692808399,0.3744,3983.3,3983.2,0.45186]
[1761692808599,0.6155,3983.3,3983.2,0.45186]
[1761692811109,0.6155,3983.2,3983.1,3.84877121]
[1761692811303,0.6155,3983.2,3983.1,4.30064121]
[1761692812406,0.3744,3983.2,3983.1,4.30064121]
[1761692813614,0.8573,3983.2,3983.1,4.30064121]
[1761692814405,0.6155,3983.2,3983.1,4.30064121]
[1761692817614,0.3744,3983.2,3983.1,4.30064121]
[1761692819918,0.6155,3983.2,3983.1,4.30064121]
[1761692820119,0.8573,3983.2,3983.1,3.84877121]
[1761692821215,0.8573,3983.2,3983.1,4.30064121]
[1761692821829,0.8573,3983.2,3983.1,3.84877121]
[1761692822019,4.51696,3983.2,3983.1,0.00177121]
[1761692822320,5.20510365,3983.2,3983.1,3.83977121]
[1761692822623,5.20510365,3983.2,3983.1,0.00177121]
[1761692822912,5.20510365,3983.2,3983.1,3.01877121]
[1761692829814,4.27516,3983.2,3983.1,3.01877121]
[1761692830322,4.50046,3983.2,3983.1,3.01877121]
[1761692831522,3.5822,3983.2,3983.1,3.47064121]
[1761692831819,4.03406,3983.2,3983.1,3.01877121]
[1761692832018,3.8039,3983.2,3983.1,3.01877121]
[1761692833114,3.5822,3983.2,3983.1,3.01877121]
[1761692834021,0.1461,3983.5,3983.3,0.45185]
[1761692834328,0.3526,3983.9,3983.8,0.45179]
[1761692834517,0.3526,3983.9,3983.8,4.28479]
[1761692835421,0.161,3984.0,3983.8,4.28479]
[1761692835828,0.5136,3984.0,3983.8,4.28479]
[1761692836019,0.3526,3983.9,3983.8,3.833]
[1761692839614,0.3526,3983.9,3983.8,4.28479]
[1761692841127,0.3526,3984.2,3983.8,3.833]
[1761692841322,0.3526,3984.2,3984.1,0.45176]
[1761692844227,0.3526,3984.2,3984.0,3.65957]
[1761692844823,0.1331,3984.5,3984.0,3.2078]
[1761692845131,0.3526,3984.4,3984.0,3.2078]
[1761692845329,0.5743,3984.4,3984.0,3.2078]
[1761692845627,0.3526,3984.3,3984.0,3.2078]
[1761692845832,0.3526,3984.3,3984.1,3.828]
[1761692846524,0.5743,3984.2,3984.1,4.27976]
[1761692847128,0.2217,3984.1,3984.0,3.2078]
[1761692847323,1.25136,3984.1,3984.0,7.0348]
[1761692849132,0.7996,3984.1,3984.0,7.0348]
[1761692851029,0.7996,3984.1,3984.0,7.48657]
[1761692851226,0.3526,3984.1,3984.0,7.48657]
[1761692851626,0.3526,3984.4,3984.3,0.45173]
[1761692851840,0.3526,3984.7,3984.6,0.4517]
[1761692852038,0.3526,3984.7,3984.6,4.2777]
[1761692852225,0.1331,3985.0,3984.9,0.45167]
[1761692852430,0.1331,3985.0,3984.9,4.27767]
[1761692852626,0.3528,3985.5,3984.9,7.0338]
[1761692852936,0.3526,3985.7,3985.4,3.2078]
[1761692853138,0.3526,3985.7,3985.5,3.826]
[1761692853333,0.00244971,3985.8,3985.5,3.826]
[1761692853728,0.00244971,3985.8,3985.7,0.45158]
[1761692854629,0.35504971,3985.8,3985.7,0.45158]
[1761692854833,0.35504971,3985.8,3985.5,3.826]
[1761692854834,0.35504971,3985.8,3985.6,0.45158]
[1761692857337,0.00244971,3985.8,3985.6,0.45158]
[1761692858534,0.35504971,3985.8,3985.6,0.45158]
[1761692864939,0.3401,3985.7,3985.6,0.45158]
[1761692866036,0.00244971,3985.8,3985.6,0.45158]
[1761692866434,0.00244971,3985.8,3985.7,3.25629917]
[1761692867542,0.00244971,3985.8,3985.7,3.33149917]
[1761692867743,0.00244971,3985.8,3985.7,3.25629917]
[1761692868239,0.00244971,3985.8,3985.7,3.70787917]
[1761692875246,0.57004971,3985.8,3985.7,3.70787917]
[1761692875639,0.00244971,3985.8,3985.7,3.70787917]
[1761692876840,0.24535704,3986.1,3986.0,0.50225]
[1761692877040,0.3586,3986.5,3986.4,0.4853]
[1761692877240,0.3586,3986.5,3986.4,4.3063]
[1761692878044,0.1339836,3986.5,3986.4,4.30840609]
[1761692878445,0.1339836,3986.5,3986.4,7.51620609]
[1761692878944,0.4740836,3986.5,3986.4,7.51620609]
[1761692879640,0.4740836,3986.5,3986.4,7.53310609]
[1761692881543,0.7015836,3986.5,3986.4,7.51620609]
[1761692881943,0.7015836,3986.5,3986.4,3.69520609]
[1761692882148,0.7015836,3986.5,3986.4,7.51520609]
[1761692882943,0.9246836,3986.5,3986.4,0.00210609]
[1761692883143,2.02996004,3986.5,3986.4,0.00210609]
[1761692883343,2.02996004,3986.5,3986.4,3.82210609]
[1761692885646,2.10516004,3986.5,3986.4,3.82210609]
[1761692885847,2.02996004,3986.5,3986.4,3.82210609]
[1761692889251,1.3761736,3986.5,3986.4,3.82210609]
[1761692889448,0.4339,3985.2,3985.1,5.4628357]
[1761692889650,0.7802,3985.2,3985.1,3.82]
[1761692890543,0.7802,3985.2,3985.1,3.82274167]
[1761692891157,0.7802,3985.2,3985.1,0.00274167]
[1761692891360,0.7802,3985.2,3985.1,3.82274167]
[1761692891853,0.7802,3985.2,3985.1,0.00274167]
[1761692892047,3.988,3985.2,3985.1,0.00274167]
[1761692892249,3.988,3985.2,3985.1,3.82274167]
[1761692894055,3.988,3985.2,3983.9,0.1997831]
[1761692894056,3.6293,3985.2,3983.4,3.2078]
[1761692894361,0.3486,3984.5,3984.4,0.0218]
[1761692894657,0.3486,3984.5,3984.4,3.8636]
[1761692894658,0.568,3984.5,3984.4,3.8636]
[1761692894857,0.568,3984.5,3984.4,3.8418]
[1761692894858,0.8994,3984.5,3984.4,3.8418]
[1761692895059,0.8994,3984.5,3984.4,3.84427712]
[1761692896156,0.8994,3984.5,3984.4,3.82247712]
[1761692897367,0.8994,3984.5,3984.4,3.84427712]
[1761692897860,0.4658,3984.5,3984.4,3.88787712]
[1761692898063,4.00806,3985.0,3984.9,0.0436]
[1761692898359,4.22746,3985.0,3984.9,3.8458]
[1761692898567,4.55886,3985.0,3984.9,3.8458]
[1761692900758,4.55886,3985.0,3984.9,3.8676]
[1761692901049,4.55886,3985.0,3984.9,3.8458]
[1761692901259,4.55886,3985.0,3984.9,3.824]
[1761692908070,1.01972,3984.5,3984.4,0.00247712]
[1761692908265,1.35112,3984.5,3984.4,3.82347712]
[1761692908569,0.4658,3984.5,3984.4,3.86707712]
[1761692908770,0.91752,3984.5,3984.4,3.86707712]
[1761692908974,1.13172,3984.5,3984.4,3.86707712]
[1761692909974,1.35112,3984.5,3984.4,3.86707712]
[1761692911275,0.4658,3984.5,3984.4,3.88887712]
[1761692912275,0.4658,3984.5,3984.4,3.86707712]
[1761692914277,0.4658,3984.5,3984.4,3.88887712]
[1761692914476,0.4658,3984.5,3984.4,4.34060712]
[1761692915176,0.4658,3984.5,3984.4,3.88887712]
[1761692916375,0.4658,3984.5,3984.4,3.86707712]
[1761692916782,0.4658,3984.5,3984.4,4.34060712]
[1761692919987,0.81866,3985.0,3984.9,0.0217]
[1761692920290,0.81866,3985.0,3984.9,3.8644]
[1761692920693,1.17256,3985.0,3984.9,3.8644]
[1761692921083,0.7209,3985.0,3984.9,3.8644]
[1761692921494,0.9394,3985.0,3984.9,3.8644]
[1761692921794,0.9394,3985.0,3984.9,3.8427]
[1761692921992,0.9394,3985.0,3984.4,0.00247712]
[1761692922194,0.9423,3984.5,3984.4,0.02417712]
[1761692922498,0.9423,3984.5,3984.4,3.86687712]
[1761692923897,0.7238,3984.5,3984.4,3.86687712]
[1761692924793,0.3539,3984.5,3984.4,7.54810712]
[1761692925096,0.1344,3985.0,3984.9,0.0434]
[1761692925097,0.81866,3985.0,3984.9,0.0434]
[1761692925297,1.03716,3985.0,3984.9,3.8644]
[1761692925489,1.39106,3985.0,3984.9,3.8644]
[1761692926391,3.2078,3985.4,3985.3,0.0434]
[1761692926601,3.2078,3985.4,3985.3,3.8644]
[1761692926891,3.6589,3985.4,3985.3,3.8644]
[1761692927100,4.0128,3985.4,3985.3,3.8644]
[1761692927597,0.3539,3985.7,3985.6,0.45159]
[1761692927900,0.5865,3985.7,3985.6,0.0434]
[1761692928701,0.805,3985.7,3985.6,0.0434]
[1761692930503,0.805,3985.7,3984.9,3.2512]
[1761692930504,0.7238,3985.0,3984.9,3.2512]
[1761692930796,0.9423,3985.0,3984.9,3.821]
[1761692931306,0.9423,3985.0,3984.9,3.8427]
[1761692932796,0.9423,3985.0,3984.9,3.821]
[1761692933599,0.9423,3984.5,3984.4,0.02417712]
[1761692933801,0.9423,3984.5,3984.4,3.84517712]
[1761692935903,0.9423,3984.5,3984.4,3.82347712]
[1761692936203,0.9423,3984.5,3984.4,3.84517712]
[1761692938103,3.7943,3984.6,3984.5,0.0434]
[1761692938308,0.5865,3984.6,3984.5,0.0434]
[1761692941809,0.9423,3984.5,3984.4,3.84517712]
[1761692942914,0.9423,3984.5,3984.4,3.86687712]
[1761692945410,0.1373,3985.0,3984.9,0.0434]
[1761692945411,0.3699,3985.0,3984.9,0.0434]
[1761692945605,0.3699,3985.0,3984.9,3.8644]
[1761692946009,0.7238,3985.0,3984.9,3.8644]
[1761692946204,0.4912,3985.0,3984.9,4.33777]
[1761692946613,0.4912,3985.0,3984.9,7.54557]
[1761692946909,0.3539,3985.0,3984.9,7.54557]
[1761692947113,0.5884,3985.5,3985.4,0.0217]
[1761692947316,0.3699,3985.0,3984.9,0.49507]
[1761692947612,0.7238,3985.0,3984.9,4.31607]
[1761692948613,0.4912,3985.0,3984.9,4.33787]
[1761692950320,0.3533,3985.5,3985.4,0.0436]
[1761692950530,0.3533,3985.5,3985.4,3.8646]
[1761692950812,1.3663,3985.5,3985.4,3.8646]
[1761692951016,1.3663,3985.5,3985.4,3.8428]
[1761692951815,0.9147,3985.5,3985.4,3.8428]
[1761692954719,0.9147,3985.5,3985.4,3.8646]
[1761692955623,0.9147,3985.5,3985.4,4.31621]
[1761692955824,0.9147,3985.5,3985.4,4.33801]
[1761692955825,0.4842,3985.5,3985.4,4.33801]
[1761692956911,3.3422,3986.0,3985.4,4.33801]
[1761692957118,0.3504,3986.0,3985.9,0.0436]
[1761692957319,3.4238,3986.4,3986.3,0.0436]
[1761692957514,4.4367,3986.4,3986.3,3.8636]
[1761692960526,1.2289,3986.4,3986.3,3.8636]
[1761692963923,0.7774,3986.4,3986.3,3.8636]
[1761692965026,0.3469,3986.4,3986.3,4.33691]
[1761692965324,0.0028836,3986.5,3986.4,0.5169]
[1761692965518,0.3497836,3986.5,3986.4,0.5169]
[1761692965720,0.4872836,3986.5,3986.4,0.5169]
[1761692967625,0.3497836,3986.5,3986.4,0.5169]
[1761692968226,0.4872836,3986.5,3986.4,0.5169]
[1761692971035,0.7032836,3986.5,3986.4,0.0436]
[1761692971535,0.7032836,3986.5,3986.4,0.4951]
[1761692972229,0.7032836,3986.5,3986.3,7.0278]
[1761692972230,0.7774,3986.4,3986.3,3.2296]
[1761692972436,0.216,3985.9,3985.8,0.0436]
[1761692972630,0.4305,3985.6,3985.5,15.051]
[1761692972830,0.4305,3985.6,3985.5,18.87]
[1761692973135,0.7774,3985.6,3985.5,18.87]
[1761692974134,0.7774,3985.6,3985.5,18.8918]
[1761692979842,0.7774,3985.6,3985.5,18.9136]
[1761692980136,0.3469,3985.6,3985.5,18.9353]
[1761692981738,0.3469,3985.6,3985.5,19.3869]
[1761692981939,0.1375,3986.0,3985.9,0.0651]
[1761692982137,0.1375,3986.0,3985.9,3.8624]
[1761692982443,0.726,3986.0,3985.9,3.8624]
[1761692986044,0.726,3986.0,3985.9,3.8841]
[1761692986244,3.2078,3986.3,3986.2,0.0217]
[1761692986449,3.2078,3986.3,3986.2,3.8831]
[1761692986745,0.1403836,3986.5,3986.4,0.0651]
[1761692987044,0.4925836,3986.5,3986.4,0.0651]
[1761692988041,0.4925836,3986.5,3986.4,0.5166]
[1761692988247,0.4925836,3986.5,3986.4,0.0651]
[1761692988444,0.4925836,3986.5,3986.4,0.0434]
[1761692988747,0.7288836,3986.5,3986.4,0.0434]
[1761692989044,0.822,3986.4,3986.3,0.01930302]
[1761692989352,0.822,3986.4,3986.3,3.83730302]
[1761692990348,1.2735,3986.4,3986.3,3.83730302]
[1761692991446,0.822,3986.4,3986.3,3.85900302]
[1761692991647,0.3522,3986.4,3986.3,4.33221302]
[1761692991836,0.3522,3986.4,3986.3,4.35391302]
[1761692992037,0.3522,3986.4,3986.3,4.33221302]
[1761692992249,0.5885,3986.4,3986.3,4.33221302]
[1761692993145,0.5885,3986.4,3986.3,3.88070302]
[1761692994351,0.822,3986.4,3986.3,3.88070302]
[1761692995352,0.5885,3986.4,3986.3,3.88070302]
[1761692995653,0.3522,3986.4,3986.3,4.35391302]
[1761692996350,0.0028836,3986.5,3986.4,0.5166]
[1761692996847,0.3522,3987.2,3987.1,0.0651]
[1761692997052,0.3522,3987.2,3987.1,3.8614]
[1761692997547,0.3522,3987.7,3987.4,0.0434]
[1761692997849,0.35493968,3987.7,3987.6,0.0651]
[1761692998049,0.35493968,3987.7,3987.6,0.0434]
[1761692999048,0.59123968,3987.7,3987.6,0.0434]
[1761692999952,0.822,3987.6,3987.5,3.8397]
[1761693000152,0.822,3987.6,3987.5,3.8614]
[1761693000653,0.822,3987.6,3987.5,0.0434]
[1761693001149,1.40538,3987.5,3987.4,0.00225248]
[1761693001645,1.40538,3987.5,3987.4,3.81925248]
[1761693002155,1.40538,3987.5,3987.4,3.84095248]
[1761693003650,1.40538,3987.5,3987.4,3.86265248]
[1761693004650,0.954,3987.5,3987.4,3.86265248]
[1761693008247,0.00273968,3987.7,3987.6,0.0651]
[1761693009149,0.34013968,3987.7,3987.6,0.0651]
[1761693010155,0.56683968,3987.7,3987.6,0.0434]
[1761693011149,0.78593968,3987.7,3987.6,0.0217]
[1761693011453,0.78593968,3987.7,3987.6,0.0433]
[1761693014457,0.34013968,3987.7,3987.6,0.0433]
[1761693014759,0.34013968,3987.7,3987.6,0.0649]
[1761693016055,0.3587,3988.5,3988.4,0.0432]
[1761693016250,0.3587,3988.5,3988.4,3.8592]
[1761693016451,0.132,3988.5,3988.4,3.8808]
[1761693016657,0.4774,3988.5,3988.4,3.8808]
[1761693016858,0.4774,3988.5,3988.4,3.8592]
[1761693017056,0.70673372,3988.5,3988.4,3.8592]
[1761693019360,0.48003372,3988.5,3988.4,3.8808]
[1761693020670,0.70783372,3988.5,3988.4,3.8592]
[1761693021360,0.92693372,3988.5,3988.4,3.8592]
[1761693021563,0.7912,3988.3,3988.2,3.2078]
[1761693021760,0.7912,3988.3,3988.2,3.2294]
[1761693021959,0.7912,3988.3,3988.2,7.0444]
[1761693022964,0.7912,3988.3,3988.2,7.49571]